[Event "Mitropa Cup Women 2022"]
[Site "Corte"]
[Date "2022.05.03"]
[Round "4.5"]
[White "Schulze, Lara"]
[Black "Unuk, Laura"]
[Result "0-1"]
[ECO "C07"]
[WhiteElo "2303"]
[BlackElo "2338"]
[Annotator "TA"]
[PlyCount "80"]
[EventDate "2022.04.30"]
[EventType "team-tourn"]
[EventCountry "FRA"]
[SourceTitle "playchess.com"]
[Source "ChessBase"]
[SourceQuality "1"]
[WhiteTeam "Germany"]
[BlackTeam "Slovenia"]
[WhiteTeamCountry "GER"]
[BlackTeamCountry "SLO"]
[TimeControl "40/5400+30:1800+30"]

{[%evp 16,79,17,11,21,0,2,16,21,9,20,17,22,31,79,60,72,91,135,16,20,-217,-219,-213,-215,-212,-204,-270,-270,-298,-304,-300,-291,-373,-377,-390,-272,-377,-292,-277,-279,-266,379,-500,-493,-535,-510,-525,-471,-29988,-12839,-12838,-12837,-12838,-12838,-12837,-12837,-12842,-12843,-12845,-12846,-29996,-29997,-29997,-29998,-29999]} 1. e4 {[%emt 0:00:03]} e6 {[%emt 0:00:07]} 2. d4 {[%emt 0:00:07]} d5 {[%emt 0:00:05]} 3. Nd2 {[%emt 0:00:05][%cal Bb1d2,Bd2f3,Bf3d4,Bd4b3][%mdl 32]} c5 {[%emt 0:00:16]} 4. Ngf3 {[%emt 0:00:12]} cxd4 {[%emt 0:00:13]} 5. Nxd4 {[%emt 0:00:13]} Nf6 {[%emt 0:00:21]} 6. exd5 {[%emt 0:00:20]} Nxd5 {[%emt 0:00:09]} 7. Bd3 {[%emt 0:00:27]} Be7 {[%emt 0:05:35]} 8. N2f3 {[%emt 0:03:41]} O-O {[%emt 0:01:26]} 9. c3 {[%emt 0:06:36]} Nc6 {[%emt 0:05:31] C03: French Tarrasch: Unusual Black 3rd moves.} 10. O-O {[%emt 0:09:48]} Nxd4 {[%emt 0:11:15]} 11. Nxd4 {[%emt 0:00:14]} Qc7 {[%emt 0:02:16] The position is equal.} 12. Qh5 {[%emt 0:10:06][%csl Gd3][%cal Rh5h7] [#]} Nf6 $146 {[%emt 0:23:09]} ({Predecessor:} 12... g6 13. Qf3 Rd8 14. Rd1 a6 15. Ne2 e5 16. Bc2 Be6 17. Bb3 Nf6 {½-½ (26) Camacho Collados,M (2360)-Summerscale,A (2434) England 2011}) 13. Qh4 {[%emt 0:04:21]} Rd8 {[%emt 0:02:12]} 14. Re1 {[%emt 0:04:38]} Rd5 {[%emt 0:04:19]} (14... e5 $14 15. Qg3 Rd5) 15. Bf4 $1 $16 {[%emt 0:10:06]} Qc5 {[%emt 0:19:49] [#]} (15... e5 16. Bg5 $16) 16. Nb3 $1 {[%emt 0:11:26]} Nh5 {[%emt 0:15:57]} (16... Qc6 17. Bxh7+) 17. Bg5 {[%emt 0:13:08]} Bxg5 $11 {[%emt 0:00:21]} 18. Bxh7+ $2 {[%emt 0:02:14]} Kxh7 $19 {[%emt 0:01:09]} 19. Qxh5+ {[%emt 0:01:52]} Bh6 {[%emt 0:00:06]} 20. Qxf7 {[%emt 0:00:51]} Qb6 {[%emt 0:01:24] ...Rf5 is the strong threat.} 21. Nd4 {[%emt 0:03:42] Inhibits Rf5.} Qxb2 {[%emt 0:00:29]} 22. Nxe6 {[%emt 0:01:38]} Bxe6 {[%emt 0:00:20]} 23. Qxe6 {[%emt 0:00:05]} Rad8 {[%emt 0:01:01]} 24. c4 {[%emt 0:03:02]} Rd2 {[%emt 0:01:20]} 25. Qf5+ {[%emt 0:01:19]} Kh8 {[%emt 0:00:04][%cal Ob2a1] aiming for ...Qxa1!} 26. h4 {[%emt 0:01:34]} Qb4 {[%emt 0:01:17] White must now prevent ...Rf8.} 27. Qf7 {[%emt 0:01:44]} Qf8 {[%emt 0:03:01] Against Re8} 28. Re7 {[%emt 0:03:39]} Rxf2 $4 {[%emt 0:00:16][%mdl 8192]} 29. Qxf8+ {[%mdl 8192]} (29. Kxf2 $18 {was the only winning move.} Rd2+ 30. Kf1 Qxf7+ 31. Rxf7) 29... Rdxf8 {[%emt 0:00:18]} 30. Rxb7 {[%emt 0:00:33]} Rc2 {[%emt 0:00:27] Strongly threatening ...Rff2.} 31. Kh2 {[%emt 0:02:18]} Rff2 {[%emt 0:00:28]} 32. Rxa7 {[%emt 0:00:37]} (32. Rg1 $19) 32... Rxg2+ {[%emt 0:00:09]} (32... Bf4+ $142 33. Kh3 Rc3+ 34. Kg4 Bb8 35. Rf7 Rxf7 36. Kh5 Rg3 37. Rf1 Rxf1 38. c5 Rf5#) 33. Kh3 {[%emt 0:00:13]} Bf4 {[%emt 0:01:00][%csl Gf4][%cal Rg2g3]} 34. Ra3 {[%emt 0:00:19] Inhibits Rg3+.} Rg6 {[%emt 0:00:25][%csl Gf4][%cal Rc2h2]} 35. Rh1 {[%emt 0:00:26] Prevents Rh2+.} Rxc4 {[%emt 0:00:06]} 36. Rf1 {[%emt 0:01:23]} Bd6 {[%emt 0:00:30]} 37. Rd3 {[%emt 0:02:01]} Be7 {[%emt 0:00:11][%csl Ge7][%cal Rc4h4]} 38. Kh2 {[%emt 0:00:53]} Rxh4+ {[%emt 0:00:06] Black mates.} 39. Rh3 {[%emt 0:00:05]} Bd6+ {[%emt 0:00:03]} 40. Kh1 {[%emt 0:00:08]} Rxh3# {Weighted Error Value: White=0.89/Black=0.53} 0-1

[Event "Mitropa Cup Women 2022"]
[Site "Corte"]
[Date "2022.05.03"]
[Round "4.5"]
[White "Hakimifard, Ghazal"]
[Black "Guichard, Pauline"]
[Result "1-0"]
[ECO "C60"]
[WhiteElo "2288"]
[BlackElo "2371"]
[Annotator "TA"]
[PlyCount "79"]
[EventDate "2022.04.30"]
[EventType "team-tourn"]
[EventCountry "FRA"]
[SourceTitle "playchess.com"]
[Source "ChessBase"]
[SourceQuality "1"]
[WhiteTeam "Switzerland"]
[WhiteTeamCountry "SUI"]
[TimeControl "40/5400+30:1800+30"]

{[%evp 14,79,41,45,41,23,17,13,24,13,7,8,21,5,47,50,84,90,105,77,106,74,189,190,181,176,252,263,247,65,58,82,70,94,82,91,161,149,144,138,154,77,202,203,327,342,358,358,353,360,349,353,365,361,439,433,476,470,462,470,889,809,1143,502,982,718,881,676]} 1. e4 {[%emt 0:00:03]} e5 {[%emt 0:00:05]} 2. Nf3 {[%emt 0:00:04]} Nc6 {[%emt 0:00:04]} 3. Bb5 {[%emt 0:00:08]} g6 {[%emt 0:00:07]} 4. O-O {[%emt 0:00:32]} Bg7 {[%emt 0:01:48]} 5. c3 {[%emt 0:00:30]} a6 {[%emt 0:00:56]} 6. Ba4 {[%emt 0:00:34]} Nge7 {[%emt 0:01:07]} 7. d4 {[%emt 0:03:46]} exd4 {[%emt 0:00:49]} 8. cxd4 {[%emt 0:00:30]} b5 {[%emt 0:00:06] C60: Ruy Lopez: Unusual Black 3rd moves and 3...g6.} 9. Bb3 {[%emt 0:01:46]} O-O {[%emt 0:00:20]} 10. Nc3 {[%emt 0:02:18]} d6 {[%emt 0:00:33] The position is equal.} 11. h3 {[%emt 0:00:41] Against Bg4} Na5 {[%emt 0:00:42]} 12. Bc2 {[%emt 0:00:06]} c5 {[%emt 0:00:07]} 13. Bg5 {[%emt 0:04:28] Hoping for dxc5.} Qc7 {[%emt 0:05:19]} (13... h6 $5 {[%cal Rh6g5]} 14. Bh4 g5 $11) 14. Rc1 {[%emt 0:07:00] [#]} Nc4 $146 {[%emt 0:12:57]} ({Predecessor:} 14... Bb7 15. b3 Nac6 16. Bb1 Rfe8 17. Ne2 cxd4 18. Nexd4 Qd7 19. Qd2 Nxd4 20. Nxd4 d5 {½-½ (36) Narva,M (2333)-Kiolbasa,O (2160) Tallinn 2020}) 15. b3 {[%emt 0:05:28]} Nb6 {[%emt 0:06:55]} 16. Bb1 {[%emt 0:02:08]} Bb7 {[%emt 0:09:01]} 17. Re1 {[%emt 0:04:53]} Nc6 {[%emt 0:16:58]} (17... Rfe8 $16) 18. Nd5 $18 {[%emt 0:09:30]} Nxd5 {[%emt 0:00:08]} 19. exd5 {[%emt 0:00:04]} Nb4 {[%emt 0:02:25]} (19... Nd8 $142) 20. dxc5 {[%emt 0:01:57]} dxc5 {[%emt 0:00:32] [#]} 21. Re7 $2 {[%emt 0:11:02]} ({Only move:} 21. d6 $1 $18 {[%cal Rd6c7]} Qb6 22. Be3 Bxf3 23. Qxf3) 21... Qb6 $14 {[%emt 0:00:14]} 22. a3 $1 {[%emt 0:02:46]} Nxd5 {[%emt 0:00:16] [#]} 23. Rxb7 {[%emt 0:00:13]} Qxb7 {[%emt 0:00:06]} 24. Be4 $36 {[%emt 0:00:06][%cal Bb1e4,Be4d5,Bd5f7][%mdl 2080] Black is under strong pressure.} Qd7 {[%emt 0:08:53]} 25. Qxd5 $18 {[%emt 0:04:33]} Qxd5 {[%emt 0:00:07]} 26. Bxd5 {[%emt 0:00:02]} Rac8 {[%emt 0:00:19]} 27. Be7 {[%emt 0:14:45] White is more active. A strong pair of Bishops.} (27. Bf4 $142) 27... Bb2 {[%emt 0:00:24] Loses the game.} (27... Rfe8 $16 {was called for.} 28. Bg5 (28. Rxc5 Bf8 $16) (28. Bxc5 $2 Bb2 $19) 28... h6) 28. Re1 {[%emt 0:05:00]} ({Resist} 28. Rxc5 $6 Rxc5 29. Bxc5 Rd8 $16) 28... Rfe8 {[%emt 0:06:27]} (28... c4 $142) 29. Ng5 {[%emt 0:00:25]} Kg7 {[%emt 0:04:42]} 30. Bxf7 {[%emt 0:00:51]} ({Don't take} 30. Nxf7 c4 $18) 30... Rxe7 {[%emt 0:00:15]} 31. Rxe7 {[%emt 0:00:04]} Kf6 {[%emt 0:00:04]} 32. Re2 {[%emt 0:02:30]} Bxa3 {[%emt 0:04:22]} 33. Ne4+ {[%emt 0:01:30]} ({Not} 33. Nxh7+ Kxf7 34. Ng5+ Kf8 $15) 33... Kg7 {[%emt 0:00:23] [#]} 34. Ra2 $1 {[%emt 0:00:47] White is clearly winning.} b4 {[%emt 0:00:51]} (34... Bc1 35. Rxa6) 35. Bc4 {[%emt 0:00:31]} a5 {[%emt 0:00:27]} 36. Rd2 {[%emt 0:00:14]} Kh6 {[%emt 0:05:35]} (36... Rc7 $142 37. Rd5 Bb2 38. Nxc5 Ra7) 37. g4 {[%emt 0:02:59] White threatens f4 and mate.} Rc7 {[%emt 0:01:59]} 38. Rd5 {[%emt 0:00:44]} (38. f4 $142 {Intending g5+ and mate.} Kg7 39. f5 gxf5 40. gxf5) 38... a4 {[%emt 0:00:31]} (38... Kg7 $142 39. Nxc5 Ra7) 39. bxa4 {[%emt 0:06:44] aiming for Nf6.} Ra7 {[%emt 0:00:24]} 40. Nxc5 {[%emt 0:00:55] Weighted Error Value: White=0.30/Black=0.35} 1-0

[Event "Mitropa Cup Women 2022"]
[Site "Corte"]
[Date "2022.05.03"]
[Round "4.6"]
[White "Urh, Zala"]
[Black "Schoene, Maria"]
[Result "1-0"]
[ECO "E71"]
[WhiteElo "2315"]
[BlackElo "2222"]
[Annotator "TA"]
[PlyCount "57"]
[EventDate "2022.04.30"]
[EventType "team-tourn"]
[EventCountry "FRA"]
[SourceTitle "playchess.com"]
[Source "ChessBase"]
[SourceQuality "1"]
[WhiteTeam "Slovenia"]
[BlackTeam "Germany"]
[WhiteTeamCountry "SLO"]
[BlackTeamCountry "GER"]
[TimeControl "40/5400+30:1800+30"]

{[%evp 13,57,31,47,0,66,63,57,55,95,97,91,75,113,81,113,129,145,97,91,73,79,73,220,192,204,93,618,622,607,591,806,809,904,852,832,595,539,527,1799,1128,29992,29993,29993,29987,29987,6733]} 1. d4 {[%emt 0:00:01]} Nf6 {[%emt 0:00:07]} 2. c4 {[%emt 0:00:49]} g6 {[%emt 0:00:08]} 3. Nc3 {[%emt 0:00:06]} Bg7 {[%emt 0:00:09]} 4. e4 {[%emt 0:00:04]} d6 {[%emt 0:00:13]} 5. h3 {[%emt 0:00:04]} O-O {[%emt 0:00:38]} 6. Be3 {[%emt 0:00:05]} e5 {[%emt 0:02:20]} 7. d5 {[%emt 0:00:11]} c6 {[%emt 0:03:01][%cal Ob7b5]} 8. g4 {[%emt 0:01:52] E71: King's Indian: 4 e4 d6 5 h3.} (8. Nf3 $14) 8... a5 {[%emt 0:00:39]} (8... b5 $11) 9. Nge2 $14 {[%emt 0:02:26] White is more active.} Na6 {[%emt 0:03:51]} 10. Ng3 {[%emt 0:00:55] White is slightly better.} Qc7 {[%emt 0:20:12]} 11. Be2 {[%emt 0:03:47] [#]} Nc5 $146 {[%emt 0:00:45]} ({Predecessor:} 11... Rb8 12. Qd2 Ne8 13. h4 f6 14. h5 Rf7 15. hxg6 hxg6 16. f3 Bf8 17. Kf2 c5 {1-0 (38) Rosell,S (1943)-Vernuks,V (1692) Calvia 2019}) 12. h4 {[%emt 0:04:08][%cal Bh3h4,Bh4h5][%mdl 32]} a4 {[%emt 0:05:19]} 13. Rc1 {[%emt 0:03:07]} Qa5 {[%emt 0:09:55]} 14. Kf1 {[%emt 0:03:34]} cxd5 {[%emt 0:14:37]} 15. cxd5 {[%emt 0:00:28]} (15. exd5 $142 Bd7 16. Kg2) 15... Bd7 $16 {[%emt 0:00:44]} 16. h5 {[%emt 0:04:35]} Qb4 {[%emt 0:08:22][%cal Rf6e4]} 17. Kg2 {[%emt 0:06:44]} Rac8 {[%emt 0:03:57] [#]} (17... Ncxe4 $2 18. Ncxe4 Nxe4 19. Rc4 Nxf2 20. Rxb4 $18) (17... Rfc8 $16 {was called for.}) 18. g5 $1 $18 {[%emt 0:08:36]} Ne8 {[%emt 0:00:22]} (18... Nfxe4 $2 19. Ncxe4 Nxe4 20. Rh4 $18) 19. Qg1 {[%emt 0:03:32]} ({Resist} 19. h6 $6 Bh8 $16) (19. Bg4 $18 f5 20. gxf6 Nxf6 21. Bxd7 Ncxd7 22. Qe2 (22. Qxa4 Qxa4 23. Nxa4 Ng4 $16)) 19... f5 $2 {[%emt 0:10:32][%mdl 8192]} (19... Qxb2 $16 20. Qh2 h6 21. gxh6 Bf6) 20. hxg6 {[%emt 0:06:29]} hxg6 {[%emt 0:00:35] ...f4 is the strong threat.} 21. exf5 {[%emt 0:04:03]} ({Inferior is} 21. Qh2 f4 22. Qh7+ Kf7 23. Bxc5 (23. Rh6 fxe3 24. Rxg6 Ke7 $19) 23... Rxc5 $11) 21... Bxf5 {[%emt 0:02:20]} 22. Qh2 {[%emt 0:00:06]} Kf7 {[%emt 0:03:48]} 23. Nxf5 {[%emt 0:11:58]} gxf5 {[%emt 0:00:04]} 24. Qh5+ {[%emt 0:00:06]} Ke7 {[%emt 0:00:11]} 25. Qg6 {[%emt 0:00:13] [#] Black must now prevent a3.} Qxb2 {[%emt 0:07:01]} 26. Bb5 {[%emt 0:05:51] Bxc5 would kill now.} Nc7 {[%emt 0:01:45]} 27. Bxc5 {[%emt 0:02:37] White mates.} Nxb5 {[%emt 0:00:17]} 28. Qe6+ {[%emt 0:00:19]} Kd8 {[%emt 0:00:02]} 29. Bb6+ {[%emt 0:00:09] Weighted Error Value: White=0.22 (precise) /Black=1.02} (29. Nxb5 $142 dxc5 30. Qb6+ Ke8 31. Nd6+ Kd7 32. Qxb2 Kxd6 33. Qb6+ Rc6 34. dxc6) 1-0

[Event "Mitropa Cup Women 2022"]
[Site "Corte"]
[Date "2022.05.03"]
[Round "4.6"]
[White "Navrotescu, Andreea"]
[Black "Hund, Sarah"]
[Result "1-0"]
[ECO "D32"]
[WhiteElo "2275"]
[BlackElo "2086"]
[Annotator "TA"]
[PlyCount "77"]
[EventDate "2022.04.30"]
[EventType "team-tourn"]
[EventCountry "FRA"]
[SourceTitle "playchess.com"]
[Source "ChessBase"]
[SourceQuality "1"]
[BlackTeam "Switzerland"]
[BlackTeamCountry "SUI"]
[TimeControl "40/5400+30:1800+30"]

{[%evp 12,76,60,60,45,45,66,14,17,6,23,14,53,44,45,31,42,56,47,46,52,42,50,54,53,50,52,18,154,164,161,183,180,179,185,181,352,349,438,446,439,368,464,465,681,475,483,475,475,475,752,730,1023,989,29967,29943,29975,29974,29973,29974,29977,29978,29985,29980,29998,29999,29999]} 1. d4 {[%emt 0:00:03]} d5 {[%emt 0:00:09]} 2. c4 {[%emt 0:00:07]} e6 {[%emt 0:00:07][%cal Be7e6,Be6d5,Bd5d4][%mdl 32]} 3. Nc3 {[%emt 0:00:05]} c5 {[%emt 0:00:09]} 4. cxd5 {[%emt 0:00:17]} exd5 {[%emt 0:00:11]} 5. Nf3 {[%emt 0:00:24]} Nc6 {[%emt 0:00:20]} 6. dxc5 {[%emt 0:00:16]} d4 {[%emt 0:00:29]} 7. Na4 $1 {[%emt 0:00:13]} Bxc5 {[%emt 0:00:32][%mdl 64] [#] Decoy. D32: Tarrasch Defence: Sidelines and lines without g3.} 8. Nxc5 {[%emt 0:00:07]} Qa5+ {[%emt 0:00:12]} 9. Bd2 {[%emt 0:00:08]} ({White should play} 9. Qd2 $14 Qxc5 10. e3) 9... Qxc5 $11 {[%emt 0:00:15] The position is equal.} 10. b4 {[%emt 0:00:07]} Nxb4 {[%emt 0:04:29] Hoping for ...Nc2+.} 11. Rc1 {[%emt 0:00:25] Against Nc2+} Qd6 {[%emt 0:00:26]} 12. e3 {[%emt 0:00:24]} Ne7 {[%emt 0:01:07]} 13. Nxd4 {[%emt 0:09:06][%cal Bf3d4,Bd4b5,Bb5c7][%mdl 32] [#] Black must now prevent Nb5.} O-O {[%emt 0:02:19]} 14. Nb5 {[%emt 0:10:07]} Nd3+ {[%emt 0:02:46]} 15. Bxd3 {[%emt 0:00:03]} Qxd3 {[%emt 0:00:10]} 16. Nc7 $36 {[%emt 0:00:03][%mdl 2048] Strongly threatening Bb4. White has some pressure.} Qg6 {[%emt 0:04:07][%cal Og6g2]} 17. O-O {[%emt 0:06:41]} (17. Nxa8 Qxg2 18. Rf1 Bh3 $17) 17... Bh3 $1 {[%emt 0:02:33][%csl Gh3][%cal Rg6g2]} 18. Qf3 {[%emt 0:00:58]} Bg4 {[%emt 0:00:30] [#]} 19. Qf4 $146 {[%emt 0:00:26]} (19. Qxb7 Rab8 20. Qa6 Rb6 $17) (19. Qg3 $5 {[%cal Rc7a8]} Nf5 20. Qf4 $16) ({Predecessor:} 19. Qg3 Rac8 20. Bb4 Qe4 21. Qf4 Qxf4 22. exf4 Rfd8 23. Bxe7 Rd7 24. Nb5 Rxc1 25. Rxc1 Rxe7 {½-½ (41) Bartsch,R (2090)-Tedesco,M (2092) ICCF email 2016}) 19... Rac8 {[%emt 0:20:52] White now steadily converts the win.} (19... Rad8 $1 $11 20. Bb4 Rd7) 20. Bb4 $16 {[%emt 0:03:15] White is more active.} Rxc7 {[%emt 0:02:43]} 21. Qxc7 {[%emt 0:07:36]} ({Resist} 21. Rxc7 $6 Nd5 22. Qg3 (22. Qc4 Bf3 $17) 22... Nxb4 $11) 21... Nd5 {[%emt 0:01:03]} 22. Qd6 {[%emt 0:00:38][%csl Gb4][%cal Rd6f8]} (22. Qxb7 Bf3 23. g3 Qg4 24. Qxd5 (24. Bxf8 {leads to mate.} Qh3) 24... Bxd5 $19) 22... Nxb4 {[%emt 0:00:48]} 23. Qxb4 {[%emt 0:00:03]} Bh3 $2 {[%emt 0:02:37]} (23... Bf3 24. g3 Re8) 24. Qxb7 $18 {[%emt 0:05:10]} h5 {[%emt 0:03:44]} 25. Kh1 {[%emt 0:02:25]} Be6 {[%emt 0:04:22]} 26. Rfd1 {[%emt 0:04:22][%cal Bf1d1,Bd1d4,Bd4h4,Bh4h6][%mdl 32]} h4 {[%emt 0:02:24]} 27. h3 {[%emt 0:01:12]} Bxa2 {[%emt 0:02:30]} (27... Qf5 $142 28. f3 Bxa2 29. Qxa7 Bb3) 28. Qxa7 {[%emt 0:01:32]} Be6 {[%emt 0:02:57]} 29. Rd4 {[%emt 0:00:53]} Qf6 {[%emt 0:03:07]} 30. Kg1 {[%emt 0:01:40]} g5 {[%emt 0:05:39]} (30... g6 $142 31. Qa4 Kg7 32. Rxh4 Rd8) 31. Rc5 {[%emt 0:02:07] Qa5 is the strong threat.} Kh7 {[%emt 0:03:52]} 32. f4 {[%emt 0:03:41][%cal Bf2f4,Bf4g5][%mdl 32]} Bf5 {[%emt 0:12:07]} 33. fxg5 {[%emt 0:02:17] White mates.} Qe6 {[%emt 0:00:45]} 34. Rxh4+ {[%emt 0:00:25]} Kg8 35. Qa1 {[%emt 0:04:06][%csl Ga1][%cal Rh4h8]} f6 {[%emt 0:02:37]} 36. Qd4 {[%emt 0:01:56]} Kg7 {[%emt 0:01:23]} 37. Rc7+ {[%emt 0:00:08]} Kg6 {[%emt 0:02:33]} 38. Rh6+ {[%emt 0:00:10]} Kxg5 {[%emt 0:00:09]} 39. Qf4# {[%emt 0:00:07] Weighted Error Value: White=0.13 (very precise) /Black=0.58} 1-0

[Event "Mitropa Cup Women 2022"]
[Site "Corte"]
[Date "2022.05.03"]
[Round "4.7"]
[White "Bashylina, Luisa"]
[Black "Vidic, Teja"]
[Result "0-1"]
[ECO "D18"]
[WhiteElo "1981"]
[BlackElo "2168"]
[Annotator "TA"]
[PlyCount "64"]
[EventDate "2022.04.30"]
[EventType "team-tourn"]
[EventCountry "FRA"]
[SourceTitle "playchess.com"]
[Source "ChessBase"]
[SourceQuality "1"]
[WhiteTeam "Germany"]
[BlackTeam "Slovenia"]
[WhiteTeamCountry "GER"]
[BlackTeamCountry "SLO"]
[TimeControl "40/5400+30:1800+30"]

{[%evp 18,64,5,0,7,4,22,27,12,12,53,43,37,33,87,75,75,75,70,-11,-7,-26,-9,-18,-34,-48,0,-33,10,-54,-16,-72,-79,-77,-28,-35,-25,-85,-94,-97,0,-153,-148,-529,-519,-618,-600,-694,-655]} 1. d4 {[%emt 0:00:02]} d5 {[%emt 0:00:10]} 2. c4 {[%emt 0:00:10]} c6 {[%emt 0:00:04]} 3. Nf3 {[%emt 0:00:08]} Nf6 {[%emt 0:00:07]} 4. Nc3 {[%emt 0:00:04]} dxc4 {[%emt 0:00:10]} 5. a4 {[%emt 0:00:14]} Bf5 {[%emt 0:00:08]} 6. e3 {[%emt 0:00:09]} e6 {[%emt 0:00:09]} 7. Bxc4 {[%emt 0:00:05]} Bb4 {[%emt 0:00:07]} 8. O-O {[%emt 0:00:06]} O-O {[%emt 0:00:05]} 9. Nh4 {[%emt 0:00:03]} Nbd7 {[%emt 0:00:51]} 10. h3 {[%emt 0:00:06]} Nb6 {[%emt 0:07:16] D18: Slav Defence: 5 a4 Bf5 6 e3.} 11. Bb3 {[%emt 0:00:15]} a5 {[%emt 0:04:49]} 12. Nxf5 {[%emt 0:02:49]} exf5 {[%emt 0:00:14] White has an edge.} 13. Qf3 {[%emt 0:00:30]} g6 {[%emt 0:03:47]} 14. g4 $1 {[%emt 0:09:39]} fxg4 {[%emt 0:00:10]} 15. hxg4 {[%emt 0:00:04]} h5 {[%emt 0:07:52]} ({Black should try} 15... c5 $1 $14) 16. gxh5 $16 {[%emt 0:01:42]} Nxh5 {[%emt 0:00:09]} 17. e4 {[%emt 0:09:30] [#]} Kg7 $146 {[%emt 0:11:02] Prevents Bh6+.} ({Predecessor:} 17... Qxd4 18. Be3 Qd8 19. Rad1 Qc7 20. Qg4 Ng7 21. Qxg6 Bxc3 22. Qh6 {1-0 (22) Makarov,A (2553)-Grodzensky,S (2458) RCCA corr 2001}) 18. Be3 {[%emt 0:05:41]} (18. e5 $14) 18... f5 $1 $11 {[%emt 0:05:29][%cal Bf7f5,Bf5f4][%mdl 32] White should prevent ...f4.} 19. d5 {[%emt 0:11:18]} f4 {[%emt 0:04:47]} 20. Bxb6 {[%emt 0:07:13]} Qxb6 {[%emt 0:00:05]} 21. Rfd1 {[%emt 0:07:35]} Rad8 {[%emt 0:01:21]} (21... Bc5 $15 {was preferrable.} 22. Bc4 Rad8) 22. Rac1 {[%emt 0:05:04]} Bd6 {[%emt 0:02:26][%cal Bb4d6,Bd6e5,Be5d4][%mdl 32]} (22... Bc5 $5 {[%cal Rb6b3]} 23. Bc4 Bd4 $11) 23. Ne2 {[%emt 0:03:47]} (23. Nb1 $1 $11) 23... Be5 {[%emt 0:00:39]} (23... c5 $5 {[%cal Rh5f6]}) 24. Rd3 {[%emt 0:06:55]} (24. Rc4 $11 {remains equal.}) 24... Ng3 $17 {[%emt 0:09:28] Black is more active.} ({Don't play} 24... Bxb2 25. Rcd1 $11) 25. Rcd1 {[%emt 0:05:42] [#]} Nxe2+ {[%emt 0:11:55]} (25... c5 $1 $17) 26. Qxe2 $11 {[%emt 0:00:06]} c5 {[%emt 0:00:13][%cal Bc6c5,Bc5d4][%mdl 32]} 27. d6 {[%emt 0:07:28] [#]} (27. Qg4 $11) 27... Bd4 $1 $17 {[%emt 0:07:52]} 28. e5 {[%emt 0:00:49] And now Bc2 would win.} Rde8 {[%emt 0:01:50]} ({Black should play} 28... Rf5 $17 29. e6 Qc6) 29. Rxd4 $2 {[%emt 0:05:11]} cxd4 {[%emt 0:00:17]} 30. Bc2 {[%emt 0:04:00][%mdl 8192] [#]} (30. d7 $17 Re7 31. Rd3) 30... Qxd6 $1 $19 {[%emt 0:04:58][%mdl 512] Black is clearly winning.} 31. Qe4 {[%emt 0:01:53]} (31. exd6 Rxe2) 31... Rxe5 {[%emt 0:02:15]} 32. Qxb7+ {[%emt 0:00:08]} Rf7 {[%emt 0:01:08] Weighted Error Value: White=0.61/Black=0.18 (very precise)} 0-1